[Event "Titled Tuesday Blitz March 07 Late 2023"]
[White "Ardila, Oscar Humberto"]
[Black "Maiti, Milind"]
[WhiteFideId "4404742"]
[BlackFideId "2090767"]
[WhiteElo "1911"]
[BlackElo "2150"]
[Result "0-1"]
[Round "01"]
[TimeControl "180+2"]
[Date "2023.03.07"]
[WhiteClock "0:00:06"]
[BlackClock "0:00:20"]

1. d4 {[%clk 0:02:57]}  Nf6 {[%clk 0:02:59]} 2. Nf3 {[%clk 0:02:57]}  d5 {[%clk 0:02:59]} 3. g3 {[%clk 0:02:57]}  e6 {[%clk 0:02:59]} 4. Bg2 {[%clk 0:02:57]}  Be7 {[%clk 0:02:59]} 5. O-O {[%clk 0:02:57]}  O-O {[%clk 0:03:00]} 6. Nbd2 {[%clk 0:02:57]}  c5 {[%clk 0:02:59]} 7. c3 {[%clk 0:02:56]}  b6 {[%clk 0:02:58]} 8. Ne5 {[%clk 0:02:56]}  Bb7 {[%clk 0:02:57]} 9. Ndf3 {[%clk 0:02:55]}  Nc6 {[%clk 0:02:54]} 10. Bf4 {[%clk 0:02:54]}  Nd7 {[%clk 0:02:53]} 11. Rc1 {[%clk 0:02:47]}  Ndxe5 {[%clk 0:02:52]} 12. Nxe5 {[%clk 0:02:47]}  Nxe5 {[%clk 0:02:52]} 13. Bxe5 {[%clk 0:02:47]}  Qd7 {[%clk 0:02:52]} 14. Qd2 {[%clk 0:02:43]}  b5 {[%clk 0:02:52]} 15. dxc5 {[%clk 0:02:31]}  Bxc5 {[%clk 0:02:51]} 16. Bd4 {[%clk 0:02:20]}  Be7 {[%clk 0:02:47]} 17. f4 {[%clk 0:02:18]}  a6 {[%clk 0:02:46]} 18. f5 {[%clk 0:02:06]}  exf5 {[%clk 0:02:21]} 19. Qf4 {[%clk 0:02:05]}  g6 {[%clk 0:02:09]} 20. Qh6 {[%clk 0:01:40]}  f6 {[%clk 0:02:05]} 21. Rcd1 {[%clk 0:01:22]}  Rac8 {[%clk 0:02:02]} 22. h4 {[%clk 0:01:19]}  Bc5 {[%clk 0:01:44]} 23. h5 {[%clk 0:01:15]}  Qg7 {[%clk 0:01:32]} 24. Qf4 {[%clk 0:01:09]}  Rfe8 {[%clk 0:01:27]} 25. e3 {[%clk 0:00:39]}  Bf8 {[%clk 0:00:54]} 26. Rf2 {[%clk 0:00:27]}  Rcd8 {[%clk 0:00:50]} 27. hxg6 {[%clk 0:00:21]}  hxg6 {[%clk 0:00:50]} 28. Qh4 {[%clk 0:00:21]}  Re6 {[%clk 0:00:47]} 29. Bf3 {[%clk 0:00:18]}  Bd6 {[%clk 0:00:23]} 30. Kg2 {[%clk 0:00:17]}  Qh7 {[%clk 0:00:18]} 31. Rh1 {[%clk 0:00:15]}  Qxh4 {[%clk 0:00:18]} 32. Rxh4 {[%clk 0:00:16]}  Be5 {[%clk 0:00:17]} 33. Bd1 {[%clk 0:00:14]}  Bxd4 {[%clk 0:00:17]} 34. exd4 {[%clk 0:00:15]}  Kg7 {[%clk 0:00:17]} 35. Bb3 {[%clk 0:00:14]}  Rh8 {[%clk 0:00:18]} 36. Rxh8 {[%clk 0:00:13]}  Kxh8 {[%clk 0:00:18]} 37. Kf3 {[%clk 0:00:14]}  Kg7 {[%clk 0:00:18]} 38. Rh2 {[%clk 0:00:14]}  Re7 {[%clk 0:00:18]} 39. Rf2 {[%clk 0:00:13]}  g5 {[%clk 0:00:18]} 40. Rh2 {[%clk 0:00:12]}  Kg6 {[%clk 0:00:19]} 41. Rh8 {[%clk 0:00:11]}  a5 {[%clk 0:00:19]} 42. a4 {[%clk 0:00:08]}  bxa4 {[%clk 0:00:18]} 43. Bxa4 {[%clk 0:00:09]}  Ba6 {[%clk 0:00:19]} 44. Be8+ {[%clk 0:00:08]}  Kg7 {[%clk 0:00:18]} 45. Rh2 {[%clk 0:00:05]}  Rxe8 {[%clk 0:00:18]} 46. Rh1 {[%clk 0:00:05]}  Bd3 {[%clk 0:00:18]} 47. Ra1 {[%clk 0:00:05]}  Be4+ {[%clk 0:00:19]} 48. Kf2 {[%clk 0:00:05]}  Rb8 {[%clk 0:00:20]} 49. Rxa5 {[%clk 0:00:05]}  Rxb2+ {[%clk 0:00:20]} 50. Ke3 {[%clk 0:00:06]}  Rc2 {[%clk 0:00:21]} 51. Ra7+ {[%clk 0:00:06]}  Kg6 {[%clk 0:00:20]} 52. Rc7 {[%clk 0:00:07]}  Rg2 {[%clk 0:00:19]} 53. c4 {[%clk 0:00:06]}  Rxg3+ {[%clk 0:00:19]} 54. Kf2 {[%clk 0:00:06]}  Rc3 {[%clk 0:00:19]} 55. Ke2 {[%clk 0:00:07]}  g4 {[%clk 0:00:19]} 56. c5 {[%clk 0:00:07]}  g3 {[%clk 0:00:19]} 57. Rc8 {[%clk 0:00:07]}  g2 {[%clk 0:00:20]} 58. Rg8+ {[%clk 0:00:06]}  Kf7 {[%clk 0:00:20]} 59. Rg3 {[%clk 0:00:06]}  Rxg3 {[%clk 0:00:20]} 0-1


[Site "https://www.chess.com"]

[Event "Titled Tuesday Blitz March 07 Late 2023"]
[White "Gurevich, Ilya"]
[Black "Risteski, Emil"]
[WhiteFideId "2000628"]
[BlackFideId "15005267"]
[WhiteElo "2137"]
[BlackElo "2251"]
[Result "1-0"]
[Round "01"]
[TimeControl "180+2"]
[Date "2023.03.07"]
[WhiteClock "0:00:03"]
[BlackClock "0:00:11"]

1. d4 {[%clk 0:02:59]}  d6 {[%clk 0:03:00]} 2. c4 {[%clk 0:03:00]}  Nf6 {[%clk 0:02:58]} 3. Nc3 {[%clk 0:02:59]}  Nbd7 {[%clk 0:02:59]} 4. Nf3 {[%clk 0:02:59]}  e5 {[%clk 0:02:59]} 5. e4 {[%clk 0:03:00]}  Be7 {[%clk 0:02:51]} 6. Be2 {[%clk 0:02:59]}  O-O {[%clk 0:02:50]} 7. O-O {[%clk 0:03:00]}  c6 {[%clk 0:02:49]} 8. h3 {[%clk 0:03:00]}  Re8 {[%clk 0:02:49]} 9. Be3 {[%clk 0:03:01]}  Bf8 {[%clk 0:02:49]} 10. d5 {[%clk 0:03:00]}  c5 {[%clk 0:02:49]} 11. Ne1 {[%clk 0:02:59]}  g6 {[%clk 0:02:43]} 12. Nd3 {[%clk 0:03:00]}  h5 {[%clk 0:02:38]} 13. a3 {[%clk 0:02:53]}  Kh7 {[%clk 0:02:38]} 14. Qd2 {[%clk 0:02:45]}  Ng8 {[%clk 0:02:37]} 15. b4 {[%clk 0:02:39]}  b6 {[%clk 0:02:36]} 16. bxc5 {[%clk 0:02:38]}  Nxc5 {[%clk 0:02:36]} 17. Nxc5 {[%clk 0:02:36]}  bxc5 {[%clk 0:02:37]} 18. Rab1 {[%clk 0:02:32]}  Bh6 {[%clk 0:02:37]} 19. Rb3 {[%clk 0:02:27]}  Bxe3 {[%clk 0:02:34]} 20. Qxe3 {[%clk 0:02:27]}  f5 {[%clk 0:02:29]} 21. exf5 {[%clk 0:02:25]}  Bxf5 {[%clk 0:02:30]} 22. g4 {[%clk 0:01:56]}  hxg4 {[%clk 0:02:23]} 23. hxg4 {[%clk 0:01:57]}  Bd7 {[%clk 0:02:21]} 24. Kg2 {[%clk 0:01:44]}  Kg7 {[%clk 0:02:21]} 25. Rh1 {[%clk 0:01:42]}  Rb8 {[%clk 0:02:08]} 26. Rxb8 {[%clk 0:01:34]}  Qxb8 {[%clk 0:02:06]} 27. Ne4 {[%clk 0:01:25]}  Rf8 {[%clk 0:01:44]} 28. Qh3 {[%clk 0:01:13]}  Nf6 {[%clk 0:01:16]} 29. Qh6+ {[%clk 0:01:08]}  Kf7 {[%clk 0:01:14]} 30. Ng5+ {[%clk 0:00:42]}  Ke7 {[%clk 0:01:10]} 31. Qg7+ {[%clk 0:00:35]}  Ke8 {[%clk 0:01:09]} 32. Qxg6+ {[%clk 0:00:35]}  Kd8 {[%clk 0:01:07]} 33. Rb1 {[%clk 0:00:24]}  Qc8 {[%clk 0:00:58]} 34. Nf7+ {[%clk 0:00:22]}  Kc7 {[%clk 0:00:55]} 35. Qxf6 {[%clk 0:00:22]}  Qa6 {[%clk 0:00:49]} 36. Qe7 {[%clk 0:00:17]}  Re8 {[%clk 0:00:46]} 37. Qf6 {[%clk 0:00:15]}  Rf8 {[%clk 0:00:45]} 38. g5 {[%clk 0:00:15]}  Rg8 {[%clk 0:00:36]} 39. g6 {[%clk 0:00:14]}  Be8 {[%clk 0:00:32]} 40. Qe7+ {[%clk 0:00:14]}  Bd7 {[%clk 0:00:32]} 41. Qf6 {[%clk 0:00:12]}  Be8 {[%clk 0:00:32]} 42. Kf1 {[%clk 0:00:08]}  Bd7 {[%clk 0:00:29]} 43. g7 {[%clk 0:00:07]}  Bh3+ {[%clk 0:00:21]} 44. Kg1 {[%clk 0:00:05]}  Bd7 {[%clk 0:00:20]} 45. Nh6 {[%clk 0:00:04]}  Re8 {[%clk 0:00:15]} 46. Qf7 {[%clk 0:00:03]}  Qxa3 {[%clk 0:00:13]} 47. Bg4 {[%clk 0:00:03]}  Rd8 {[%clk 0:00:12]} 48. g8=Q {[%clk 0:00:03]}  Rxg8 {[%clk 0:00:11]} 49. Qxd7# {[%clk 0:00:03]} 1-0


[Site "https://www.chess.com"]

[Event "Titled Tuesday Blitz March 07 Late 2023"]
[White "Kretchetov, Alexandre"]
[Black "Ramirez, Maria Eugenia"]
[WhiteFideId "4124588"]
[BlackFideId "3301680"]
[WhiteElo "2531"]
[BlackElo "1842"]
[Result "1-0"]
[Round "01"]
[TimeControl "180+2"]
[Date "2023.03.07"]
[WhiteClock "0:00:58"]
[BlackClock "0:00:06"]

1. Nf3 {[%clk 0:02:20]}  Nf6 {[%clk 0:02:59]} 2. c4 {[%clk 0:02:17]}  e6 {[%clk 0:02:58]} 3. Nc3 {[%clk 0:02:16]}  c5 {[%clk 0:02:56]} 4. g3 {[%clk 0:02:15]}  Nc6 {[%clk 0:02:54]} 5. Bg2 {[%clk 0:02:15]}  Be7 {[%clk 0:02:52]} 6. O-O {[%clk 0:02:15]}  O-O {[%clk 0:02:52]} 7. d4 {[%clk 0:02:14]}  cxd4 {[%clk 0:02:51]} 8. Nxd4 {[%clk 0:02:15]}  Bc5 {[%clk 0:02:46]} 9. Nb3 {[%clk 0:02:12]}  Bb6 {[%clk 0:02:43]} 10. Bf4 {[%clk 0:02:11]}  Bc7 {[%clk 0:02:39]} 11. Bxc7 {[%clk 0:02:10]}  Qxc7 {[%clk 0:02:38]} 12. Nb5 {[%clk 0:02:11]}  Qd8 {[%clk 0:02:38]} 13. Nd6 {[%clk 0:02:10]}  Ne5 {[%clk 0:02:36]} 14. Qd4 {[%clk 0:02:07]}  Nc6 {[%clk 0:02:34]} 15. Qd2 {[%clk 0:02:05]}  Rb8 {[%clk 0:02:34]} 16. Rfd1 {[%clk 0:02:04]}  Ne8 {[%clk 0:02:28]} 17. Rac1 {[%clk 0:02:00]}  Nf6 {[%clk 0:02:16]} 18. h3 {[%clk 0:01:57]}  h6 {[%clk 0:02:14]} 19. a3 {[%clk 0:01:55]}  b6 {[%clk 0:02:08]} 20. Kh2 {[%clk 0:01:49]}  Qc7 {[%clk 0:02:03]} 21. e4 {[%clk 0:01:45]}  Bb7 {[%clk 0:02:01]} 22. f4 {[%clk 0:01:45]}  e5 {[%clk 0:01:56]} 23. f5 {[%clk 0:01:42]}  a5 {[%clk 0:01:49]} 24. Nb5 {[%clk 0:01:40]}  Qd8 {[%clk 0:01:44]} 25. Qe3 {[%clk 0:01:39]}  a4 {[%clk 0:01:41]} 26. Nd2 {[%clk 0:01:38]}  Ba6 {[%clk 0:01:39]} 27. Nc3 {[%clk 0:01:34]}  Nd4 {[%clk 0:01:37]} 28. Nxa4 {[%clk 0:01:32]}  Qc7 {[%clk 0:01:32]} 29. Nc3 {[%clk 0:01:30]}  d6 {[%clk 0:01:24]} 30. Ne2 {[%clk 0:01:18]}  Nc6 {[%clk 0:01:17]} 31. b4 {[%clk 0:01:17]}  Bb7 {[%clk 0:01:08]} 32. Nb3 {[%clk 0:01:17]}  Rfd8 {[%clk 0:01:06]} 33. Nc3 {[%clk 0:01:14]}  Ne7 {[%clk 0:01:04]} 34. Nb5 {[%clk 0:01:13]}  Qc6 {[%clk 0:01:00]} 35. Nd2 {[%clk 0:01:05]}  Nxf5 {[%clk 0:00:59]} 36. Qf2 {[%clk 0:01:04]}  Ne7 {[%clk 0:00:43]} 37. Rf1 {[%clk 0:01:03]}  Ba6 {[%clk 0:00:35]} 38. Nc3 {[%clk 0:01:02]}  Rbc8 {[%clk 0:00:25]} 39. b5 {[%clk 0:01:02]}  Qb7 {[%clk 0:00:24]} 40. bxa6 {[%clk 0:01:02]}  Qxa6 {[%clk 0:00:25]} 41. Nd5 {[%clk 0:01:02]}  Nexd5 {[%clk 0:00:23]} 42. exd5 {[%clk 0:00:59]}  Qxa3 {[%clk 0:00:22]} 43. Ne4 {[%clk 0:00:59]}  Nxe4 {[%clk 0:00:16]} 44. Qxf7+ {[%clk 0:00:58]}  Kh8 {[%clk 0:00:16]} 45. Bxe4 {[%clk 0:00:58]}  Qb2+ {[%clk 0:00:16]} 46. Rc2 {[%clk 0:00:58]}  Qd4 {[%clk 0:00:11]} 47. Qg6 {[%clk 0:00:58]}  Rxc4 {[%clk 0:00:06]} 48. Qh7# {[%clk 0:00:58]} 1-0


[Site "https://www.chess.com"]

[Event "Titled Tuesday Blitz March 07 Late 2023"]
[White "Stead, Kerry"]
[Black "Poltorak, Sebastian"]
[WhiteFideId "3202577"]
[BlackFideId "1199498"]
[WhiteElo "1997"]
[BlackElo "2195"]
[Result "0-1"]
[Round "01"]
[TimeControl "180+2"]
[Date "2023.03.07"]
[WhiteClock "0:00:02"]
[BlackClock "0:02:02"]

1. d4 {[%clk 0:02:51]}  Nf6 {[%clk 0:02:59]} 2. f3 {[%clk 0:02:46]}  d5 {[%clk 0:02:57]} 3. e4 {[%clk 0:02:43]}  dxe4 {[%clk 0:02:54]} 4. Nc3 {[%clk 0:02:31]}  Bf5 {[%clk 0:02:25]} 5. fxe4 {[%clk 0:02:09]}  Nxe4 {[%clk 0:02:25]} 6. Qf3 {[%clk 0:01:56]}  Nd6 {[%clk 0:02:13]} 7. Bf4 {[%clk 0:01:47]}  e6 {[%clk 0:02:10]} 8. O-O-O {[%clk 0:01:10]}  Be7 {[%clk 0:02:03]} 9. Bxd6 {[%clk 0:00:26]}  Bxd6 {[%clk 0:02:03]} 10. Qxb7 {[%clk 0:00:07]}  Nd7 {[%clk 0:02:02]} 11. Nf3 {[%clk 0:00:02]}  O-O {[%clk 0:02:02]} 0-1


[Site "https://www.chess.com"]

[Event "Titled Tuesday Blitz March 07 Late 2023"]
[White "Carbone, Diego"]
[Black "Aung Thant Zin"]
[WhiteFideId "3002179"]
[BlackFideId "13000063"]
[WhiteElo "2266"]
[BlackElo "2278"]
[Result "1-0"]
[Round "01"]
[TimeControl "180+2"]
[Date "2023.03.07"]
[WhiteClock "0:00:22"]
[BlackClock "0:00:02"]

1. d4 {[%clk 0:03:00]}  Nf6 {[%clk 0:02:59]} 2. c4 {[%clk 0:03:01]}  e6 {[%clk 0:02:59]} 3. g3 {[%clk 0:03:01]}  d5 {[%clk 0:02:59]} 4. Nf3 {[%clk 0:03:02]}  Be7 {[%clk 0:02:59]} 5. Bg2 {[%clk 0:03:03]}  O-O {[%clk 0:02:59]} 6. O-O {[%clk 0:03:03]}  dxc4 {[%clk 0:03:00]} 7. Qc2 {[%clk 0:03:04]}  a6 {[%clk 0:03:00]} 8. a4 {[%clk 0:03:03]}  Bd7 {[%clk 0:02:58]} 9. Qxc4 {[%clk 0:03:04]}  b5 {[%clk 0:02:58]} 10. Qc2 {[%clk 0:03:01]}  Bc6 {[%clk 0:02:52]} 11. Bf4 {[%clk 0:02:54]}  bxa4 {[%clk 0:02:46]} 12. Rc1 {[%clk 0:02:41]}  Be4 {[%clk 0:02:22]} 13. Bxc7 {[%clk 0:02:29]}  Bxc2 {[%clk 0:01:56]} 14. Bxd8 {[%clk 0:02:28]}  Rxd8 {[%clk 0:01:54]} 15. Rxc2 {[%clk 0:02:27]}  Ra7 {[%clk 0:01:42]} 16. Rxa4 {[%clk 0:02:19]}  Nd5 {[%clk 0:01:19]} 17. Ne5 {[%clk 0:01:56]}  Nb4 {[%clk 0:01:19]} 18. Rc4 {[%clk 0:01:55]}  f6 {[%clk 0:00:57]} 19. Nf3 {[%clk 0:01:45]}  Nd5 {[%clk 0:00:51]} 20. Rc1 {[%clk 0:01:33]}  Rb7 {[%clk 0:00:51]} 21. Rc2 {[%clk 0:01:23]}  Rb4 {[%clk 0:00:43]} 22. Rxb4 {[%clk 0:01:22]}  Nxb4 {[%clk 0:00:43]} 23. Rc7 {[%clk 0:01:18]}  Bd6 {[%clk 0:00:37]} 24. Ra7 {[%clk 0:01:08]}  N8c6 {[%clk 0:00:36]} 25. Rb7 {[%clk 0:01:07]}  Bf8 {[%clk 0:00:34]} 26. e3 {[%clk 0:00:34]}  Na5 {[%clk 0:00:33]} 27. Rc7 {[%clk 0:00:28]}  e5 {[%clk 0:00:20]} 28. Bh3 {[%clk 0:00:27]}  Kh8 {[%clk 0:00:04]} 29. Nc3 {[%clk 0:00:26]}  Nd3 {[%clk 0:00:03]} 30. dxe5 {[%clk 0:00:23]}  fxe5 {[%clk 0:00:02]} 31. Ng5 {[%clk 0:00:22]} 1-0


[Site "https://www.chess.com"]

[Event "Titled Tuesday Blitz March 07 Late 2023"]
[White "Eliteplayer3"]
[Black "Remolar Gallen, Jose"]
[BlackFideId "2215187"]
[WhiteElo "2092"]
[BlackElo "2223"]
[Result "0-1"]
[Round "01"]
[TimeControl "180+2"]
[Date "2023.03.07"]
[WhiteClock "0:01:03"]
[BlackClock "0:01:32"]

1. d4 {[%clk 0:03:00]}  Nf6 {[%clk 0:02:58]} 2. Nf3 {[%clk 0:03:00]}  g6 {[%clk 0:02:58]} 3. c4 {[%clk 0:02:58]}  c5 {[%clk 0:02:57]} 4. d5 {[%clk 0:02:56]}  b5 {[%clk 0:02:52]} 5. cxb5 {[%clk 0:02:54]}  a6 {[%clk 0:02:53]} 6. bxa6 {[%clk 0:02:46]}  Bxa6 {[%clk 0:02:48]} 7. Nc3 {[%clk 0:02:46]}  Bg7 {[%clk 0:02:48]} 8. e4 {[%clk 0:02:46]}  Bxf1 {[%clk 0:02:48]} 9. Rxf1 {[%clk 0:02:47]}  d6 {[%clk 0:02:45]} 10. Bf4 {[%clk 0:02:42]}  O-O {[%clk 0:02:44]} 11. Qc2 {[%clk 0:02:39]}  Na6 {[%clk 0:02:41]} 12. a3 {[%clk 0:02:36]}  Nb4 {[%clk 0:02:38]} 13. Qd2 {[%clk 0:02:30]}  Qa5 {[%clk 0:02:34]} 14. O-O-O {[%clk 0:02:26]}  Rfb8 {[%clk 0:02:21]} 15. e5 {[%clk 0:02:18]}  c4 {[%clk 0:01:50]} 16. exf6 {[%clk 0:01:57]}  Nd3+ {[%clk 0:01:40]} 17. Kb1 {[%clk 0:01:49]}  Qxa3 {[%clk 0:01:34]} 18. Qxd3 {[%clk 0:01:03]}  Qa1+ {[%clk 0:01:31]} 19. Kc2 {[%clk 0:01:03]}  Rxb2# {[%clk 0:01:32]} 0-1


[Site "https://www.chess.com"]

[Event "Titled Tuesday Blitz March 07 Late 2023"]
[White "Kokoszczynski, Jan"]
[Black "Djordjevic, Dejan N"]
[WhiteFideId "1174460"]
[BlackFideId "913316"]
[WhiteElo "2139"]
[BlackElo "2261"]
[Result "1-0"]
[Round "01"]
[TimeControl "180+2"]
[Date "2023.03.07"]
[WhiteClock "0:00:03"]
[BlackClock "0:00:01"]

1. e4 {[%clk 0:02:57]}  c5 {[%clk 0:02:59]} 2. Nf3 {[%clk 0:02:56]}  Nc6 {[%clk 0:02:58]} 3. d4 {[%clk 0:02:56]}  cxd4 {[%clk 0:02:57]} 4. Nxd4 {[%clk 0:02:57]}  Nf6 {[%clk 0:02:58]} 5. Nc3 {[%clk 0:02:57]}  Qb6 {[%clk 0:02:57]} 6. Nb3 {[%clk 0:02:55]}  e6 {[%clk 0:02:56]} 7. Bd3 {[%clk 0:02:48]}  a6 {[%clk 0:02:53]} 8. Be3 {[%clk 0:02:43]}  Qc7 {[%clk 0:02:52]} 9. O-O {[%clk 0:02:36]}  b5 {[%clk 0:02:52]} 10. a3 {[%clk 0:02:19]}  Be7 {[%clk 0:02:48]} 11. h3 {[%clk 0:02:07]}  O-O {[%clk 0:02:47]} 12. Qd2 {[%clk 0:01:54]}  d6 {[%clk 0:02:47]} 13. f4 {[%clk 0:01:52]}  Rb8 {[%clk 0:02:44]} 14. Qf2 {[%clk 0:01:50]}  b4 {[%clk 0:02:39]} 15. Ne2 {[%clk 0:01:32]}  e5 {[%clk 0:02:32]} 16. a4 {[%clk 0:01:15]}  Re8 {[%clk 0:01:39]} 17. Rad1 {[%clk 0:01:12]}  Bf8 {[%clk 0:01:35]} 18. fxe5 {[%clk 0:00:55]}  dxe5 {[%clk 0:01:34]} 19. Qg3 {[%clk 0:00:54]}  Kh8 {[%clk 0:01:30]} 20. Rf2 {[%clk 0:00:51]}  Be6 {[%clk 0:01:14]} 21. Rdf1 {[%clk 0:00:49]}  Ng8 {[%clk 0:01:05]} 22. Nc5 {[%clk 0:00:43]}  Bxc5 {[%clk 0:00:49]} 23. Bxc5 {[%clk 0:00:44]}  a5 {[%clk 0:00:45]} 24. b3 {[%clk 0:00:40]}  f6 {[%clk 0:00:40]} 25. Be3 {[%clk 0:00:33]}  Rbd8 {[%clk 0:00:31]} 26. Rd1 {[%clk 0:00:30]}  Nge7 {[%clk 0:00:23]} 27. Nc1 {[%clk 0:00:28]}  Nd4 {[%clk 0:00:19]} 28. Rfd2 {[%clk 0:00:24]}  Rd7 {[%clk 0:00:15]} 29. Qf2 {[%clk 0:00:24]}  Red8 {[%clk 0:00:14]} 30. Ne2 {[%clk 0:00:24]}  Nec6 {[%clk 0:00:13]} 31. Nxd4 {[%clk 0:00:24]}  Nxd4 {[%clk 0:00:13]} 32. Kh2 {[%clk 0:00:16]}  h6 {[%clk 0:00:08]} 33. Bf1 {[%clk 0:00:14]}  Nc6 {[%clk 0:00:03]} 34. Bb5 {[%clk 0:00:13]}  Rxd2 {[%clk 0:00:03]} 35. Rxd2 {[%clk 0:00:14]}  Rxd2 {[%clk 0:00:02]} 36. Qxd2 {[%clk 0:00:15]}  Kh7 {[%clk 0:00:01]} 37. c4 {[%clk 0:00:11]}  Ne7 {[%clk 0:00:01]} 38. Qf2 {[%clk 0:00:07]}  Ng6 {[%clk 0:00:02]} 39. Bb6 {[%clk 0:00:07]}  Qb7 {[%clk 0:00:02]} 40. Bxa5 {[%clk 0:00:07]}  Qxe4 {[%clk 0:00:02]} 41. Bxb4 {[%clk 0:00:07]}  Qd3 {[%clk 0:00:02]} 42. c5 {[%clk 0:00:06]}  Qxb3 {[%clk 0:00:02]} 43. Be1 {[%clk 0:00:04]}  Nf4 {[%clk 0:00:03]} 44. Bd2 {[%clk 0:00:03]}  Bd5 {[%clk 0:00:03]} 45. Bxf4 {[%clk 0:00:03]}  exf4 {[%clk 0:00:03]} 46. Qxf4 {[%clk 0:00:04]}  Qc2 {[%clk 0:00:03]} 47. Qg3 {[%clk 0:00:03]}  Qxc5 {[%clk 0:00:03]} 48. Qd3+ {[%clk 0:00:03]}  g6 {[%clk 0:00:02]} 49. Be8 {[%clk 0:00:03]}  f5 {[%clk 0:00:01]} 50. Bb5 {[%clk 0:00:03]} 1-0


[Site "https://www.chess.com"]

[Event "Titled Tuesday Blitz March 07 Late 2023"]
[White "Pinheiro, Iung Alicio de O."]
[Black "Maranhao,Jose Renato Ruiz"]
[WhiteFideId "2104350"]
[BlackFideId "2135175"]
[WhiteElo "2283"]
[BlackElo "1970"]
[Result "1-0"]
[Round "01"]
[TimeControl "180+2"]
[Date "2023.03.07"]
[WhiteClock "0:00:12"]
[BlackClock "0:00:01"]

1. e4 {[%clk 0:02:48]}  g6 {[%clk 0:03:00]} 2. d4 {[%clk 0:02:47]}  Bg7 {[%clk 0:03:01]} 3. Nc3 {[%clk 0:02:48]}  b6 {[%clk 0:03:02]} 4. h4 {[%clk 0:02:45]}  Bb7 {[%clk 0:03:01]} 5. h5 {[%clk 0:02:45]}  e6 {[%clk 0:02:53]} 6. Nf3 {[%clk 0:02:40]}  Nf6 {[%clk 0:02:40]} 7. h6 {[%clk 0:02:38]}  Bf8 {[%clk 0:02:41]} 8. Bg5 {[%clk 0:02:10]}  Be7 {[%clk 0:02:41]} 9. Bd3 {[%clk 0:01:51]}  d5 {[%clk 0:02:35]} 10. Qe2 {[%clk 0:01:15]}  dxe4 {[%clk 0:02:14]} 11. Nxe4 {[%clk 0:01:08]}  Nxe4 {[%clk 0:01:29]} 12. Bxe4 {[%clk 0:00:56]}  Bxe4 {[%clk 0:01:13]} 13. Qxe4 {[%clk 0:00:52]}  c6 {[%clk 0:00:26]} 14. Bxe7 {[%clk 0:00:41]}  Qxe7 {[%clk 0:00:27]} 15. Qe5 {[%clk 0:00:40]}  f6 {[%clk 0:00:20]} 16. Qe4 {[%clk 0:00:36]}  O-O {[%clk 0:00:18]} 17. O-O-O {[%clk 0:00:35]}  Nd7 {[%clk 0:00:11]} 18. Rhe1 {[%clk 0:00:34]}  Rae8 {[%clk 0:00:08]} 19. Qxc6 {[%clk 0:00:33]}  e5 {[%clk 0:00:05]} 20. dxe5 {[%clk 0:00:22]}  Nxe5 {[%clk 0:00:06]} 21. Nxe5 {[%clk 0:00:22]}  fxe5 {[%clk 0:00:06]} 22. Rd7 {[%clk 0:00:22]}  Qg5+ {[%clk 0:00:06]} 23. Kb1 {[%clk 0:00:20]}  Qxh6 {[%clk 0:00:06]} 24. Qd5+ {[%clk 0:00:16]}  Kh8 {[%clk 0:00:03]} 25. f3 {[%clk 0:00:17]}  Qf4 {[%clk 0:00:01]} 26. Rh1 {[%clk 0:00:13]}  h5 {[%clk 0:00:01]} 27. Qb7 {[%clk 0:00:12]} 1-0


[Site "https://www.chess.com"]

[Event "Titled Tuesday Blitz March 07 Late 2023"]
[White "Roberson, Peter T"]
[Black "Cavanah, Troy"]
[WhiteFideId "412384"]
[BlackFideId "30949670"]
[WhiteElo "2346"]
[BlackElo "1878"]
[Result "1-0"]
[Round "01"]
[TimeControl "180+2"]
[Date "2023.03.07"]
[WhiteClock "0:01:48"]
[BlackClock "0:00:26"]

1. d4 {[%clk 0:02:57]}  Nf6 {[%clk 0:02:59]} 2. Bg5 {[%clk 0:02:57]}  d5 {[%clk 0:02:59]} 3. Bxf6 {[%clk 0:02:56]}  exf6 {[%clk 0:03:00]} 4. e3 {[%clk 0:02:56]}  c5 {[%clk 0:03:00]} 5. Nf3 {[%clk 0:02:55]}  Nc6 {[%clk 0:02:58]} 6. Nbd2 {[%clk 0:02:50]}  cxd4 {[%clk 0:02:58]} 7. exd4 {[%clk 0:02:50]}  Bd6 {[%clk 0:02:55]} 8. Bd3 {[%clk 0:02:46]}  O-O {[%clk 0:02:53]} 9. O-O {[%clk 0:02:46]}  Bg4 {[%clk 0:02:51]} 10. h3 {[%clk 0:02:46]}  Bh5 {[%clk 0:02:52]} 11. c3 {[%clk 0:02:46]}  a6 {[%clk 0:02:47]} 12. Re1 {[%clk 0:02:46]}  b5 {[%clk 0:02:40]} 13. Nf1 {[%clk 0:02:41]}  Ne7 {[%clk 0:02:29]} 14. Ne3 {[%clk 0:02:40]}  Bg6 {[%clk 0:02:29]} 15. Nh4 {[%clk 0:02:33]}  Bxd3 {[%clk 0:02:24]} 16. Qxd3 {[%clk 0:02:32]}  g6 {[%clk 0:02:21]} 17. Re2 {[%clk 0:02:27]}  Bc7 {[%clk 0:02:21]} 18. Rae1 {[%clk 0:02:26]}  Qd6 {[%clk 0:02:20]} 19. g3 {[%clk 0:02:27]}  Rfe8 {[%clk 0:02:18]} 20. Nxd5 {[%clk 0:02:19]}  Bd8 {[%clk 0:01:52]} 21. Nf4 {[%clk 0:02:11]}  Qd7 {[%clk 0:01:40]} 22. Qf3 {[%clk 0:02:06]}  Bc7 {[%clk 0:01:30]} 23. Nd5 {[%clk 0:02:04]}  Nxd5 {[%clk 0:01:19]} 24. Rxe8+ {[%clk 0:02:03]}  Rxe8 {[%clk 0:01:19]} 25. Rxe8+ {[%clk 0:02:03]}  Qxe8 {[%clk 0:01:20]} 26. Qxd5 {[%clk 0:02:03]}  Qe1+ {[%clk 0:00:49]} 27. Kg2 {[%clk 0:02:03]}  Qe2 {[%clk 0:00:48]} 28. Qc6 {[%clk 0:01:52]}  Ba5 {[%clk 0:00:37]} 29. Qxa6 {[%clk 0:01:49]}  Bc7 {[%clk 0:00:26]} 30. Qc8+ {[%clk 0:01:48]} 1-0


[Site "https://www.chess.com"]

[Event "Titled Tuesday Blitz March 07 Late 2023"]
[White "Nilsen, Tobias Lang"]
[Black "tandercat"]
[WhiteFideId "1521624"]
[WhiteElo "2183"]
[BlackElo "1909"]
[Result "1-0"]
[Round "01"]
[TimeControl "180+2"]
[Date "2023.03.07"]
[WhiteClock "0:02:55"]
[BlackClock "0:02:02"]

1. e4 {[%clk 0:03:00]}  c5 {[%clk 0:02:59]} 2. Nf3 {[%clk 0:03:01]}  Nc6 {[%clk 0:02:59]} 3. d4 {[%clk 0:03:01]}  cxd4 {[%clk 0:02:59]} 4. Nxd4 {[%clk 0:03:02]}  e5 {[%clk 0:02:59]} 5. Nb5 {[%clk 0:03:02]}  d6 {[%clk 0:03:00]} 6. N1c3 {[%clk 0:03:02]}  a6 {[%clk 0:03:00]} 7. Na3 {[%clk 0:03:03]}  Be7 {[%clk 0:03:00]} 8. Nc4 {[%clk 0:03:02]}  Nf6 {[%clk 0:02:58]} 9. Bg5 {[%clk 0:03:02]}  Nxe4 {[%clk 0:02:39]} 10. Nxe4 {[%clk 0:03:00]}  Bxg5 {[%clk 0:02:39]} 11. Ncxd6+ {[%clk 0:02:59]}  Kf8 {[%clk 0:02:34]} 12. Qh5 {[%clk 0:02:55]}  g6 {[%clk 0:02:07]} 13. Qxg5 {[%clk 0:02:54]}  Qxg5 {[%clk 0:02:02]} 14. Nxg5 {[%clk 0:02:55]} 1-0


[Site "https://www.chess.com"]